[Event "*** Titled Tuesday Blitz"]
[Site "Chess.com"]
[Date "2021.03.16"]
[Round "1"]
[White "JordanLoyd2020"]
[Black "CrazyMartian"]
[Result "0-1"]
[WhiteElo "2534"]
[BlackElo "2240"]
[TimeControl "180+1"]
[EndTime "10:07:58 PDT"]
[Termination "CrazyMartian won by resignation"]

1. d4 {[%clk 0:03:00.9]} 1... d5 {[%clk 0:02:59.4]} 2. c4 {[%clk 0:02:58.9]}
2... e6 {[%clk 0:02:59.3]} 3. Nc3 {[%clk 0:02:59.2]} 3... Nf6 {[%clk 0:02:58.7]}
4. cxd5 {[%clk 0:02:59.5]} 4... exd5 {[%clk 0:02:58.1]} 5. Bg5 {[%clk
0:02:59.6]} 5... c6 {[%clk 0:02:58.3]} 6. e3 {[%clk 0:02:57.6]} 6... Be7 {[%clk
0:02:57.7]} 7. Bd3 {[%clk 0:02:57.3]} 7... Nbd7 {[%clk 0:02:49.2]} 8. Qc2 {[%clk
0:02:55]} 8... h6 {[%clk 0:02:48.7]} 9. Bh4 {[%clk 0:02:52.7]} 9... Nh5 {[%clk
0:02:48.5]} 10. Bxe7 {[%clk 0:02:52]} 10... Qxe7 {[%clk 0:02:47.9]} 11. Nge2
{[%clk 0:02:52.9]} 11... Nb6 {[%clk 0:02:44.2]} 12. O-O {[%clk 0:02:46.1]} 12...
O-O {[%clk 0:02:41.8]} 13. Qd2 {[%clk 0:02:42.6]} 13... Re8 {[%clk 0:02:30.9]}
14. Rae1 {[%clk 0:02:29.8]} 14... Be6 {[%clk 0:02:20.6]} 15. f3 {[%clk
0:02:17.7]} 15... Rad8 {[%clk 0:02:18]} 16. e4 {[%clk 0:01:28.6]} 16... dxe4
{[%clk 0:02:16.7]} 17. fxe4 {[%clk 0:01:29.5]} 17... Qg5 {[%clk 0:02:05.1]} 18.
Qxg5 {[%clk 0:01:18.5]} 18... hxg5 {[%clk 0:02:06]} 19. e5 {[%clk 0:00:58.6]}
19... c5 {[%clk 0:01:21.6]} 20. dxc5 {[%clk 0:00:38.9]} 20... Rxd3 {[%clk
0:01:19.6]} 21. cxb6 {[%clk 0:00:39.2]} 21... axb6 {[%clk 0:01:14.7]} 22. Rd1
{[%clk 0:00:29.3]} 22... Red8 {[%clk 0:01:10.8]} 23. Rxd3 {[%clk 0:00:12.4]}
23... Rxd3 {[%clk 0:01:11.7]} 24. b3 {[%clk 0:00:13]} 24... Rd2 {[%clk
0:01:03.1]} 25. Rd1 {[%clk 0:00:11.3]} 25... Rc2 {[%clk 0:00:56.2]} 26. Rc1
{[%clk 0:00:10.8]} 26... Rd2 {[%clk 0:00:51.8]} 27. Rd1 {[%clk 0:00:08.7]} 27...
Rc2 {[%clk 0:00:51.1]} 28. Rd8+ {[%clk 0:00:08.9]} 28... Kh7 {[%clk 0:00:49.6]}
29. Kf2 {[%clk 0:00:05.7]} 29... Nf4 {[%clk 0:00:46.3]} 30. h3 {[%clk 0:00:04]}
30... Nxe2 {[%clk 0:00:40.2]} 31. Nxe2 {[%clk 0:00:04.9]} 31... Rxa2 {[%clk
0:00:40.4]} 32. Rb8 {[%clk 0:00:05.5]} 32... Bd5 {[%clk 0:00:36.3]} 33. g3
{[%clk 0:00:03.7]} 33... Rb2 {[%clk 0:00:34.7]} 34. Ke1 {[%clk 0:00:02.4]} 34...
Rxb3 {[%clk 0:00:33.2]} 35. Rd8 {[%clk 0:00:02.9]} 35... Bc6 {[%clk 0:00:31.6]}
36. Nd4 {[%clk 0:00:03]} 36... Rxg3 {[%clk 0:00:27.8]} 37. Nf5 {[%clk
0:00:02.3]} 37... Rxh3 {[%clk 0:00:25.8]} 38. Nd6 {[%clk 0:00:02.8]} 38... Re3+
{[%clk 0:00:22.9]} 39. Kf2 {[%clk 0:00:03.2]} 39... Rxe5 {[%clk 0:00:21.2]} 40.
Kg3 {[%clk 0:00:03.6]} 40... Re7 {[%clk 0:00:20.4]} 41. Nf5 {[%clk 0:00:03.3]}
41... Re6 {[%clk 0:00:19.3]} 42. Rb8 {[%clk 0:00:02.9]} 42... Rf6 {[%clk
0:00:17.6]} 43. Nd4 {[%clk 0:00:02.6]} 43... Rd6 {[%clk 0:00:16.9]} 44. Nf5
{[%clk 0:00:02.3]} 44... Rd3+ {[%clk 0:00:13.9]} 45. Kh2 {[%clk 0:00:02.5]}
45... Rd2+ {[%clk 0:00:14]} 46. Kg3 {[%clk 0:00:02.9]} 46... g6 {[%clk
0:00:14.2]} 47. Ne7 {[%clk 0:00:02.5]} 47... Kg7 {[%clk 0:00:13.8]} 48. Nc8
{[%clk 0:00:02.3]} 48... Rd3+ {[%clk 0:00:13.7]} 49. Kf2 {[%clk 0:00:01.5]}
49... Rd8 {[%clk 0:00:13.7]} 50. Nxb6 {[%clk 0:00:01.3]} 0-1

[Event "*** Titled Tuesday Blitz"]
[Site "Chess.com"]
[Date "2021.03.16"]
[Round "1"]
[White "ShahMatKanal"]
[Black "Konavets"]
[Result "0-1"]
[WhiteElo "2478"]
[BlackElo "2943"]
[TimeControl "180+1"]
[EndTime "10:08:02 PDT"]
[Termination "Konavets won on time"]

1. d4 {[%clk 0:03:00.2]} 1... Nf6 {[%clk 0:02:59.7]} 2. Nf3 {[%clk 0:02:56.9]}
2... g6 {[%clk 0:03:00.1]} 3. c4 {[%clk 0:02:56.9]} 3... e6 {[%clk 0:03:00]} 4.
Nc3 {[%clk 0:02:57.6]} 4... d5 {[%clk 0:03:00.3]} 5. cxd5 {[%clk 0:02:50.2]}
5... exd5 {[%clk 0:03:00.4]} 6. Bf4 {[%clk 0:02:48.2]} 6... c6 {[%clk
0:03:00.4]} 7. e3 {[%clk 0:02:48.5]} 7... Bg7 {[%clk 0:03:00.5]} 8. Bd3 {[%clk
0:02:48.1]} 8... O-O {[%clk 0:03:00.8]} 9. h3 {[%clk 0:02:45.5]} 9... Re8 {[%clk
0:03:01]} 10. Qc2 {[%clk 0:02:38.7]} 10... a5 {[%clk 0:02:59.8]} 11. O-O {[%clk
0:02:36.4]} 11... Na6 {[%clk 0:02:59.7]} 12. a3 {[%clk 0:02:35.8]} 12... Be6
{[%clk 0:03:00]} 13. Rab1 {[%clk 0:02:31.9]} 13... Nd7 {[%clk 0:02:58.6]} 14.
Na4 {[%clk 0:02:02.4]} 14... Bf8 {[%clk 0:02:41.6]} 15. Bxa6 {[%clk 0:01:50.9]}
15... Rxa6 {[%clk 0:02:39.3]} 16. Rbc1 {[%clk 0:01:44.3]} 16... Bf5 {[%clk
0:02:20.4]} 17. Qe2 {[%clk 0:01:26.8]} 17... b5 {[%clk 0:02:19.3]} 18. Ne5
{[%clk 0:01:23.8]} 18... Nxe5 {[%clk 0:02:16.4]} 19. Bxe5 {[%clk 0:01:22.6]}
19... Qg5 {[%clk 0:02:11.5]} 20. Bg3 {[%clk 0:01:11.2]} 20... h5 {[%clk
0:02:01.3]} 21. h4 {[%clk 0:01:00.3]} 21... Qf6 {[%clk 0:01:54.4]} 22. Rfe1
{[%clk 0:00:44.8]} 22... Ra7 {[%clk 0:01:48.6]} 23. Nc5 {[%clk 0:00:44.6]} 23...
Rae7 {[%clk 0:01:48.7]} 24. Qd2 {[%clk 0:00:38.7]} 24... g5 {[%clk 0:01:47.9]}
25. hxg5 {[%clk 0:00:34.9]} 25... Qxg5 {[%clk 0:01:48.8]} 26. Bf4 {[%clk
0:00:35.3]} 26... Qg6 {[%clk 0:01:48.9]} 27. Qxa5 {[%clk 0:00:20]} 27... Bh3
{[%clk 0:01:48.8]} 28. g3 {[%clk 0:00:17.1]} 28... Bg4 {[%clk 0:01:42.1]} 29.
Kg2 {[%clk 0:00:14.8]} 29... h4 {[%clk 0:01:41.7]} 30. f3 {[%clk 0:00:13]} 30...
Bc8 {[%clk 0:00:30.4]} 31. g4 {[%clk 0:00:13]} 31... Bh6 {[%clk 0:00:30.8]} 32.
Kf2 {[%clk 0:00:08.7]} 32... f5 {[%clk 0:00:25.3]} 33. g5 {[%clk 0:00:08.2]}
33... Bg7 {[%clk 0:00:23.9]} 34. Qd2 {[%clk 0:00:06.2]} 34... Qh5 {[%clk
0:00:22.3]} 35. Rh1 {[%clk 0:00:06]} 35... b4 {[%clk 0:00:20.9]} 36. axb4 {[%clk
0:00:05.3]} 36... Ra7 {[%clk 0:00:18.7]} 37. Rh3 {[%clk 0:00:05.4]} 37... Ra2
{[%clk 0:00:14.1]} 38. Rch1 {[%clk 0:00:05.6]} 38... Qf7 {[%clk 0:00:09.4]} 39.
Rxh4 {[%clk 0:00:05.7]} 39... Ba6 {[%clk 0:00:09.6]} 40. Nxa6 {[%clk 0:00:04.8]}
40... Rxa6 {[%clk 0:00:10.5]} 41. g6 {[%clk 0:00:05.6]} 41... Qa7 {[%clk
0:00:07.5]} 42. Be5 {[%clk 0:00:04.4]} 42... Rxe5 {[%clk 0:00:06.8]} 43. dxe5
{[%clk 0:00:05.3]} 43... Ra2 {[%clk 0:00:07.4]} 44. f4 {[%clk 0:00:02.7]} 44...
Qa4 {[%clk 0:00:07.2]} 45. Kf3 {[%clk 0:00:02.8]} 45... Qb3 {[%clk 0:00:07.5]}
46. Qg2 {[%clk 0:00:02.5]} 46... Qc4 {[%clk 0:00:05.8]} 47. Qh3 {[%clk
0:00:02.3]} 47... Qe4+ {[%clk 0:00:06.2]} 48. Kf2 {[%clk 0:00:01.7]} 48... Rxb2+
{[%clk 0:00:06.4]} 49. Kg1 {[%clk 0:00:01.8]} 49... Rb1+ {[%clk 0:00:05.9]} 50.
Qf1 {[%clk 0:00:01.7]} 50... Rxf1+ {[%clk 0:00:06]} 51. Kxf1 {[%clk 0:00:02.6]}
51... Qxe3 {[%clk 0:00:06.5]} 52. R1h2 {[%clk 0:00:02]} 52... Qd3+ {[%clk
0:00:06.2]} 0-1

[Event "*** Titled Tuesday Blitz"]
[Site "Chess.com"]
[Date "2021.03.16"]
[Round "1"]
[White "dpopadic"]
[Black "Aygehovit1992"]
[Result "0-1"]
[WhiteElo "2319"]
[BlackElo "2632"]
[TimeControl "180+1"]
[EndTime "10:08:02 PDT"]
[Termination "Aygehovit1992 won on time"]

1. e4 {[%clk 0:03:00.9]} 1... c5 {[%clk 0:02:59.7]} 2. Nc3 {[%clk 0:03:00.2]}
2... Nc6 {[%clk 0:02:58.9]} 3. f4 {[%clk 0:03:00.1]} 3... g6 {[%clk 0:02:49.2]}
4. Nf3 {[%clk 0:02:59.8]} 4... Bg7 {[%clk 0:02:49.4]} 5. Bc4 {[%clk 0:02:59.3]}
5... e6 {[%clk 0:02:48.7]} 6. f5 {[%clk 0:02:58.9]} 6... Nge7 {[%clk 0:02:47.3]}
7. fxe6 {[%clk 0:02:58.7]} 7... dxe6 {[%clk 0:02:43.8]} 8. d3 {[%clk 0:02:58.7]}
8... a6 {[%clk 0:02:42]} 9. a4 {[%clk 0:02:57.8]} 9... h6 {[%clk 0:02:25.5]} 10.
O-O {[%clk 0:02:55.9]} 10... g5 {[%clk 0:02:25.8]} 11. Kh1 {[%clk 0:02:53.7]}
11... Ng6 {[%clk 0:02:24.3]} 12. Be3 {[%clk 0:02:48.6]} 12... Qe7 {[%clk
0:02:22]} 13. Qe1 {[%clk 0:02:38.5]} 13... b6 {[%clk 0:02:18.2]} 14. Qf2 {[%clk
0:02:34]} 14... Bb7 {[%clk 0:02:12.9]} 15. a5 {[%clk 0:02:18.8]} 15... Nxa5
{[%clk 0:02:11.5]} 16. Bxc5 {[%clk 0:01:59.7]} 16... bxc5 {[%clk 0:01:24.9]} 17.
Rxa5 {[%clk 0:01:58.4]} 17... g4 {[%clk 0:01:25.3]} 18. Nd2 {[%clk 0:01:47.3]}
18... Bd4 {[%clk 0:01:25.4]} 19. Qe1 {[%clk 0:01:36]} 19... Ne5 {[%clk
0:01:09.8]} 20. Ne2 {[%clk 0:01:10.4]} 20... Be3 {[%clk 0:00:59.4]} 21. Bb3
{[%clk 0:00:55.7]} 21... h5 {[%clk 0:00:52.9]} 22. Nb1 {[%clk 0:00:33.7]} 22...
h4 {[%clk 0:00:51.9]} 23. Nf4 {[%clk 0:00:30.7]} 23... Bxf4 {[%clk 0:00:49.4]}
24. Rxf4 {[%clk 0:00:30.3]} 24... h3 {[%clk 0:00:50.3]} 25. g3 {[%clk
0:00:27.9]} 25... c4 {[%clk 0:00:43.2]} 26. Rxe5 {[%clk 0:00:23.3]} 26... cxb3
{[%clk 0:00:43]} 27. cxb3 {[%clk 0:00:19.6]} 27... Qd6 {[%clk 0:00:33.7]} 28.
Qc3 {[%clk 0:00:18.4]} 28... Ke7 {[%clk 0:00:18.9]} 29. Rc5 {[%clk 0:00:16.4]}
29... Rac8 {[%clk 0:00:17.6]} 30. b4 {[%clk 0:00:16]} 30... e5 {[%clk
0:00:12.9]} 31. Rf1 {[%clk 0:00:14.3]} 31... f6 {[%clk 0:00:09.5]} 32. Nd2
{[%clk 0:00:13.5]} 32... Rxc5 {[%clk 0:00:09.6]} 33. bxc5 {[%clk 0:00:12.7]}
33... Qc6 {[%clk 0:00:09.4]} 34. Nb3 {[%clk 0:00:11.2]} 34... Rd8 {[%clk
0:00:08.6]} 35. Qc4 {[%clk 0:00:09.9]} 35... Qe6 {[%clk 0:00:06.7]} 36. Qxe6+
{[%clk 0:00:08.4]} 36... Kxe6 {[%clk 0:00:07.6]} 37. Nc1 {[%clk 0:00:06.6]}
37... a5 {[%clk 0:00:05.8]} 38. Kg1 {[%clk 0:00:06.6]} 38... Rc8 {[%clk
0:00:06]} 39. Nb3 {[%clk 0:00:04.6]} 39... a4 {[%clk 0:00:06]} 40. Na5 {[%clk
0:00:04.5]} 40... Ba6 {[%clk 0:00:06.4]} 41. Rc1 {[%clk 0:00:04]} 41... Bxd3
{[%clk 0:00:06.1]} 42. Kf2 {[%clk 0:00:04.6]} 42... Bxe4 {[%clk 0:00:06.3]} 43.
Ke3 {[%clk 0:00:05.3]} 43... f5 {[%clk 0:00:06.8]} 44. c6 {[%clk 0:00:05.6]}
44... Kd6 {[%clk 0:00:06.6]} 45. Rd1+ {[%clk 0:00:05.4]} 45... Kc7 {[%clk
0:00:06.8]} 46. Rd7+ {[%clk 0:00:05.1]} 46... Kb6 {[%clk 0:00:07.4]} 47. Nc4+
{[%clk 0:00:05.2]} 47... Kxc6 {[%clk 0:00:05.9]} 48. Nxe5+ {[%clk 0:00:06.1]}
48... Kb5 {[%clk 0:00:06.4]} 49. Rf7 {[%clk 0:00:04.5]} 49... Rc2 {[%clk
0:00:06.3]} 50. Rf8 {[%clk 0:00:02]} 50... Rxh2 {[%clk 0:00:06.3]} 0-1

[Event "*** Titled Tuesday Blitz"]
[Site "Chess.com"]
[Date "2021.03.16"]
[Round "1"]
[White "Paladin61"]
[Black "zmeeed67"]
[Result "1-0"]
[WhiteElo "2764"]
[BlackElo "2406"]
[TimeControl "180+1"]
[EndTime "10:08:06 PDT"]
[Termination "Paladin61 won by resignation"]

1. b3 {[%clk 0:02:56.2]} 1... Nf6 {[%clk 0:02:57]} 2. Bb2 {[%clk 0:02:56.4]}
2... g6 {[%clk 0:02:57.9]} 3. Bxf6 {[%clk 0:02:56.3]} 3... exf6 {[%clk
0:02:58.8]} 4. c4 {[%clk 0:02:56.8]} 4... d5 {[%clk 0:02:57.3]} 5. cxd5 {[%clk
0:02:57]} 5... Qxd5 {[%clk 0:02:58.2]} 6. Nc3 {[%clk 0:02:57.2]} 6... Qd6 {[%clk
0:02:58.6]} 7. e3 {[%clk 0:02:55.4]} 7... c6 {[%clk 0:02:56]} 8. g3 {[%clk
0:02:53.5]} 8... Bg7 {[%clk 0:02:54.2]} 9. Bg2 {[%clk 0:02:53.3]} 9... O-O
{[%clk 0:02:54.6]} 10. Nge2 {[%clk 0:02:53.4]} 10... h5 {[%clk 0:02:30.3]} 11.
d4 {[%clk 0:02:49.4]} 11... h4 {[%clk 0:02:29.3]} 12. Nf4 {[%clk 0:02:44.7]}
12... Re8 {[%clk 0:02:23]} 13. O-O {[%clk 0:02:43.2]} 13... f5 {[%clk
0:02:11.8]} 14. Rb1 {[%clk 0:02:35.6]} 14... Nd7 {[%clk 0:02:09.9]} 15. b4
{[%clk 0:02:32.3]} 15... a6 {[%clk 0:01:57.4]} 16. Qc2 {[%clk 0:02:22.7]} 16...
Nf6 {[%clk 0:01:55.9]} 17. Na4 {[%clk 0:02:19.9]} 17... g5 {[%clk 0:01:19.7]}
18. Nd3 {[%clk 0:02:14.1]} 18... f4 {[%clk 0:01:18.9]} 19. Nb6 {[%clk
0:02:07.1]} 19... Bf5 {[%clk 0:01:04]} 20. Nxa8 {[%clk 0:01:51.7]} 20... Rxa8
{[%clk 0:01:04]} 21. Rbd1 {[%clk 0:01:31]} 21... Re8 {[%clk 0:00:50.4]} 22. exf4
{[%clk 0:01:28.6]} 22... gxf4 {[%clk 0:00:46.6]} 23. Qc5 {[%clk 0:01:20]} 23...
Qd7 {[%clk 0:00:28.1]} 24. Nxf4 {[%clk 0:01:15.5]} 24... h3 {[%clk 0:00:24.2]}
25. Bf3 {[%clk 0:01:11.7]} 25... Be4 {[%clk 0:00:21.1]} 26. Qc3 {[%clk
0:01:05.4]} 26... Nd5 {[%clk 0:00:17.1]} 27. Nxd5 {[%clk 0:00:54.1]} 27... Qxd5
{[%clk 0:00:18]} 28. Rfe1 {[%clk 0:00:53.7]} 28... Bxf3 {[%clk 0:00:15.6]} 29.
Rxe8+ {[%clk 0:00:53.6]} 29... Kh7 {[%clk 0:00:13.4]} 30. Rde1 {[%clk
0:00:23.4]} 30... Be2 {[%clk 0:00:12.3]} 31. Qc2+ {[%clk 0:00:12.7]} 31... f5
{[%clk 0:00:12.7]} 32. Re4 {[%clk 0:00:13.1]} 32... Bf3 {[%clk 0:00:02.4]} 33.
Rh4+ {[%clk 0:00:12]} 33... Kg6 {[%clk 0:00:03]} 34. Rf4 {[%clk 0:00:08.7]}
34... Bh1 {[%clk 0:00:03]} 35. Qxf5+ {[%clk 0:00:06.7]} 35... Qxf5 {[%clk
0:00:03.9]} 36. Rxf5 {[%clk 0:00:07.6]} 36... Kxf5 {[%clk 0:00:04.7]} 37. Kxh1
{[%clk 0:00:08.1]} 37... Bxd4 {[%clk 0:00:05.6]} 38. f3 {[%clk 0:00:07.3]} 38...
Bc3 {[%clk 0:00:05.5]} 39. Re4 {[%clk 0:00:05.8]} 39... b6 {[%clk 0:00:04.1]}
40. Kg1 {[%clk 0:00:06]} 40... a5 {[%clk 0:00:04.2]} 41. bxa5 {[%clk 0:00:06.2]}
41... Bxa5 {[%clk 0:00:05.1]} 42. Rh4 {[%clk 0:00:06.1]} 42... Bd2 {[%clk
0:00:03.4]} 43. Rxh3 {[%clk 0:00:05.2]} 43... c5 {[%clk 0:00:03.9]} 44. Kf1
{[%clk 0:00:05.7]} 44... c4 {[%clk 0:00:04]} 45. Ke2 {[%clk 0:00:06]} 45... Bc1
{[%clk 0:00:04.5]} 46. Rh5+ {[%clk 0:00:05.3]} 46... Kg6 {[%clk 0:00:05]} 47.
Rb5 {[%clk 0:00:05.4]} 47... c3 {[%clk 0:00:03.3]} 48. Rxb6+ {[%clk 0:00:05.6]}
48... Kf5 {[%clk 0:00:04.2]} 49. Kd3 {[%clk 0:00:06.2]} 49... Bd2 {[%clk
0:00:04.9]} 50. Rb5+ {[%clk 0:00:06.7]} 50... Ke6 {[%clk 0:00:05.8]} 51. a4
{[%clk 0:00:07.1]} 51... Kd6 {[%clk 0:00:06.7]} 52. Rb3 {[%clk 0:00:07.4]} 1-0

[Event "*** Titled Tuesday Blitz"]
[Site "Chess.com"]
[Date "2021.03.16"]
[Round "1"]
[White "Joker_Gumble"]
[Black "Evandro_Barbosa"]
[Result "1/2-1/2"]
[WhiteElo "2338"]
[BlackElo "2630"]
[TimeControl "180+1"]
[EndTime "10:08:13 PDT"]
[Termination "Game drawn - insufficient material"]

1. d4 {[%clk 0:03:00.9]} 1... Nf6 {[%clk 0:02:59]} 2. c4 {[%clk 0:03:01.2]} 2...
e6 {[%clk 0:02:59.3]} 3. Nf3 {[%clk 0:03:00.6]} 3... c5 {[%clk 0:02:59.8]} 4. d5
{[%clk 0:03:00.2]} 4... exd5 {[%clk 0:03:00.7]} 5. cxd5 {[%clk 0:03:00.8]} 5...
d6 {[%clk 0:03:01.1]} 6. Nc3 {[%clk 0:03:01.3]} 6... g6 {[%clk 0:03:01.6]} 7. e4
{[%clk 0:03:00.9]} 7... a6 {[%clk 0:03:00.4]} 8. a4 {[%clk 0:03:00]} 8... Bg4
{[%clk 0:03:00.1]} 9. Be2 {[%clk 0:02:16.5]} 9... Bxf3 {[%clk 0:02:58.7]} 10.
Bxf3 {[%clk 0:02:16.8]} 10... Bg7 {[%clk 0:02:59.6]} 11. O-O {[%clk 0:02:16.8]}
11... O-O {[%clk 0:02:59.3]} 12. g4 {[%clk 0:02:10]} 12... Nbd7 {[%clk
0:02:58.2]} 13. g5 {[%clk 0:02:09.3]} 13... Ne8 {[%clk 0:02:58.3]} 14. Bg2
{[%clk 0:02:06.2]} 14... Rb8 {[%clk 0:02:58.1]} 15. a5 {[%clk 0:01:58.5]} 15...
Nc7 {[%clk 0:02:55.9]} 16. f4 {[%clk 0:01:45.6]} 16... b5 {[%clk 0:02:54.9]} 17.
axb6 {[%clk 0:01:42.9]} 17... Rxb6 {[%clk 0:02:55]} 18. e5 {[%clk 0:01:36.1]}
18... dxe5 {[%clk 0:02:55.9]} 19. f5 {[%clk 0:01:36.1]} 19... Re8 {[%clk
0:02:50]} 20. d6 {[%clk 0:01:27.6]} 20... Nb5 {[%clk 0:02:46.1]} 21. Nxb5 {[%clk
0:01:03.7]} 21... axb5 {[%clk 0:02:47]} 22. fxg6 {[%clk 0:01:03]} 22... hxg6
{[%clk 0:02:45.5]} 23. Bd5 {[%clk 0:00:33.4]} 23... Rf8 {[%clk 0:02:40.9]} 24.
Qf3 {[%clk 0:00:23.3]} 24... Qe8 {[%clk 0:02:30.1]} 25. Ra8 {[%clk 0:00:21]}
25... Rb8 {[%clk 0:02:22.3]} 26. Rxb8 {[%clk 0:00:13.8]} 26... Nxb8 {[%clk
0:02:23.2]} 27. Qg4 {[%clk 0:00:05.3]} 27... Qd7 {[%clk 0:02:18]} 28. Qf3 {[%clk
0:00:03.8]} 28... c4 {[%clk 0:02:04.9]} 29. Be3 {[%clk 0:00:03.2]} 29... e4
{[%clk 0:01:46]} 30. Qxe4 {[%clk 0:00:03.2]} 30... Qxd6 {[%clk 0:01:41.9]} 31.
Rxf7 {[%clk 0:00:03.1]} 31... Rxf7 {[%clk 0:01:27.3]} 32. Qe8+ {[%clk 0:00:02]}
32... Qf8 {[%clk 0:01:27.5]} 33. Bxf7+ {[%clk 0:00:02.2]} 33... Kh8 {[%clk
0:01:28.1]} 34. Qxf8+ {[%clk 0:00:02.7]} 34... Bxf8 {[%clk 0:01:27.9]} 35. Bxg6
{[%clk 0:00:03.5]} 35... Bg7 {[%clk 0:01:27.8]} 36. Be8 {[%clk 0:00:03]} 36...
b4 {[%clk 0:01:26.2]} 37. h4 {[%clk 0:00:03.9]} 37... b3 {[%clk 0:01:22.5]} 38.
Bc1 {[%clk 0:00:03.5]} 38... Na6 {[%clk 0:01:17.5]} 39. h5 {[%clk 0:00:03]}
39... Bd4+ {[%clk 0:01:18.4]} 40. Kg2 {[%clk 0:00:02.2]} 40... Nc5 {[%clk
0:01:19.3]} 41. g6 {[%clk 0:00:02.6]} 41... Nd3 {[%clk 0:01:19.8]} 42. Bg5
{[%clk 0:00:01.5]} 42... Nxb2 {[%clk 0:01:06.9]} 43. Bf7 {[%clk 0:00:02.4]}
43... Nd3 {[%clk 0:00:55.3]} 44. Bxc4 {[%clk 0:00:02.4]} 44... b2 {[%clk
0:00:55.9]} 45. Ba2 {[%clk 0:00:03]} 45... Nc1 {[%clk 0:00:42.4]} 46. Bb1 {[%clk
0:00:02.9]} 46... Ne2 {[%clk 0:00:39.8]} 47. h6 {[%clk 0:00:03.4]} 47... Nc3
{[%clk 0:00:39.6]} 48. g7+ {[%clk 0:00:04.3]} 48... Bxg7 {[%clk 0:00:18.4]} 49.
hxg7+ {[%clk 0:00:05.2]} 49... Kg8 {[%clk 0:00:13.1]} 50. Bc2 {[%clk 0:00:04.4]}
50... b1=Q {[%clk 0:00:12]} 51. Bxb1 {[%clk 0:00:04.2]} 51... Nxb1 {[%clk
0:00:12.2]} 52. Bh6 {[%clk 0:00:04.8]} 52... Nc3 {[%clk 0:00:11.5]} 53. Kh3
{[%clk 0:00:05.7]} 53... Nd5 {[%clk 0:00:10.3]} 54. Kh4 {[%clk 0:00:06.6]} 54...
Nf6 {[%clk 0:00:10.2]} 55. Kg5 {[%clk 0:00:06.8]} 55... Ne8 {[%clk 0:00:10.9]}
56. Kg6 {[%clk 0:00:07.1]} 56... Nxg7 {[%clk 0:00:10.5]} 1/2-1/2

[Event "*** Titled Tuesday Blitz"]
[Site "Chess.com"]
[Date "2021.03.16"]
[Round "1"]
[White "827883"]
[Black "davidkalashian"]
[Result "0-1"]
[WhiteElo "2244"]
[BlackElo "2571"]
[TimeControl "180+1"]
[EndTime "10:08:22 PDT"]
[Termination "davidkalashian won on time"]

1. e4 {[%clk 0:02:56.3]} 1... c6 {[%clk 0:02:57.1]} 2. c4 {[%clk 0:02:56.2]}
2... g6 {[%clk 0:02:58]} 3. d4 {[%clk 0:02:55.9]} 3... Bg7 {[%clk 0:02:58.1]} 4.
Nf3 {[%clk 0:02:56.4]} 4... d6 {[%clk 0:02:57]} 5. Nc3 {[%clk 0:02:56.9]} 5...
Bg4 {[%clk 0:02:54.4]} 6. Be2 {[%clk 0:02:57.2]} 6... Qb6 {[%clk 0:02:49.7]} 7.
O-O {[%clk 0:02:41.6]} 7... Bxf3 {[%clk 0:02:47.4]} 8. Bxf3 {[%clk 0:02:41.6]}
8... Qxd4 {[%clk 0:02:46.9]} 9. Qb3 {[%clk 0:02:41.4]} 9... Qb6 {[%clk
0:02:45.7]} 10. Qc2 {[%clk 0:02:30.6]} 10... Nd7 {[%clk 0:02:43.5]} 11. Be3
{[%clk 0:02:30.1]} 11... Qc7 {[%clk 0:02:44]} 12. Rad1 {[%clk 0:02:27.4]} 12...
Ngf6 {[%clk 0:02:41.8]} 13. h3 {[%clk 0:02:24.4]} 13... O-O {[%clk 0:02:41]} 14.
Be2 {[%clk 0:02:19.2]} 14... a6 {[%clk 0:02:32.6]} 15. a4 {[%clk 0:02:12.6]}
15... Rfc8 {[%clk 0:02:31]} 16. b4 {[%clk 0:02:00.3]} 16... b5 {[%clk
0:02:21.5]} 17. a5 {[%clk 0:01:44]} 17... Rab8 {[%clk 0:02:00.1]} 18. Rb1 {[%clk
0:01:38.2]} 18... Ne5 {[%clk 0:01:54.9]} 19. c5 {[%clk 0:01:33]} 19... Ned7
{[%clk 0:01:38.7]} 20. Rfd1 {[%clk 0:01:07.1]} 20... dxc5 {[%clk 0:01:34.9]} 21.
bxc5 {[%clk 0:00:53.7]} 21... Qxa5 {[%clk 0:01:24]} 22. Bf3 {[%clk 0:00:38.9]}
22... Qc7 {[%clk 0:01:13.6]} 23. Ne2 {[%clk 0:00:31.2]} 23... Ne5 {[%clk
0:01:06.2]} 24. Bf4 {[%clk 0:00:29.3]} 24... Nxf3+ {[%clk 0:01:05.4]} 25. gxf3
{[%clk 0:00:29.5]} 25... e5 {[%clk 0:01:05.7]} 26. Bg5 {[%clk 0:00:27.9]} 26...
Nh5 {[%clk 0:01:03.5]} 27. Rd2 {[%clk 0:00:18.7]} 27... h6 {[%clk 0:01:02.5]}
28. Be3 {[%clk 0:00:19.2]} 28... Nf4 {[%clk 0:00:58.9]} 29. Bxf4 {[%clk
0:00:15.9]} 29... exf4 {[%clk 0:00:59.8]} 30. Rbd1 {[%clk 0:00:16.4]} 30... Qe5
{[%clk 0:00:55.9]} 31. Qb3 {[%clk 0:00:14.4]} 31... Qxc5 {[%clk 0:00:51.2]} 32.
Rd7 {[%clk 0:00:14.1]} 32... Qg5+ {[%clk 0:00:46.4]} 33. Kh2 {[%clk 0:00:14.4]}
33... Rf8 {[%clk 0:00:47]} 34. Rg1 {[%clk 0:00:14.7]} 34... Qh4 {[%clk
0:00:45.5]} 35. Rg2 {[%clk 0:00:13.1]} 35... a5 {[%clk 0:00:40.3]} 36. Nd4
{[%clk 0:00:10.3]} 36... a4 {[%clk 0:00:38.5]} 37. Qa2 {[%clk 0:00:10.8]} 37...
b4 {[%clk 0:00:35.1]} 38. Qc4 {[%clk 0:00:07.9]} 38... b3 {[%clk 0:00:30.9]} 39.
Nxc6 {[%clk 0:00:06.1]} 39... b2 {[%clk 0:00:28.4]} 40. Ne7+ {[%clk 0:00:05.9]}
40... Kh7 {[%clk 0:00:23.1]} 41. Nxg6 {[%clk 0:00:04.4]} 41... fxg6 {[%clk
0:00:19.8]} 42. Qc7 {[%clk 0:00:04.3]} 42... Qf6 {[%clk 0:00:17.2]} 43. e5
{[%clk 0:00:03.2]} 43... Qf7 {[%clk 0:00:09.4]} 44. Rxf7 {[%clk 0:00:03.3]}
44... Rg8 {[%clk 0:00:04.4]} 45. Qxb8 {[%clk 0:00:03.5]} 45... Rxb8 {[%clk
0:00:03.5]} 46. e6 {[%clk 0:00:04]} 46... b1=Q {[%clk 0:00:03.1]} 47. e7 {[%clk
0:00:04.4]} 47... Qb5 {[%clk 0:00:02.7]} 48. Rg1 {[%clk 0:00:03.1]} 48... Re8
{[%clk 0:00:03.6]} 49. Re1 {[%clk 0:00:03.6]} 49... Qd7 {[%clk 0:00:02.8]} 50.
Rxf4 {[%clk 0:00:03.8]} 50... a3 {[%clk 0:00:03.4]} 51. Re2 {[%clk 0:00:01.8]}
51... Rxe7 {[%clk 0:00:03.6]} 0-1